fUSD/lending_fUSD_20250904
["ID","MTS","AMOUNT","RATE_DAILY","PERIOD"]
[383550818,1756986662129,-400.0,0.00022191,2]
[383550820,1756986662139,-400.0,0.00022191,2]
[383550822,1756986662148,-400.0,0.00022191,2]
[383550824,1756986662158,-400.0,0.00022191,2]
[383550825,1756986662167,-420.32,0.00022191,2]
[383550827,1756986662177,-400.0,0.00022191,2]
[383550828,1756986662187,-400.0,0.00022191,2]
[383550830,1756986662197,-400.0,0.00022191,2]
[383550831,1756986662206,-270.54154985,0.00022191,2]
[383550833,1756986662216,-400.0,0.00022191,2]
[383550834,1756986662226,-400.0,0.00022191,2]
[383550836,1756986662235,-400.0,0.00022191,2]
[383550837,1756986662244,-400.0,0.00022191,2]
[383550839,1756986662254,-400.0,0.00022191,2]
[383550840,1756986662264,-400.0,0.00022191,2]
[383550842,1756986662274,-400.0,0.00022191,2]
[383550843,1756986662284,-400.0,0.00022191,2]
[383550845,1756986662294,-400.0,0.00022191,2]
[383550850,1756986662303,-400.0,0.00022191,2]
[383550851,1756986662380,-400.0,0.00022191,2]
[383550852,1756986662390,-400.0,0.00022191,2]
[383550854,1756986662399,-400.0,0.00022191,2]
[383550855,1756986662411,-400.0,0.00022191,2]
[383550857,1756986662420,-400.0,0.00022191,2]
[383550859,1756986662429,-400.0,0.00022191,2]
[383550860,1756986662440,-400.0,0.00022191,2]
[383550862,1756986662450,-400.0,0.00022191,2]
[383550864,1756986662459,-400.0,0.00022191,2]
[383550865,1756986662468,-400.0,0.00022191,2]
[383550867,1756986662478,-400.0,0.00022191,2]
[383550868,1756986662487,-431.64,0.00022191,2]
[383550870,1756986662497,-400.0,0.00022191,2]
[383550872,1756986662507,-400.0,0.00022191,2]
[383550873,1756986662517,-400.0,0.00022191,2]
[383550875,1756986662526,-400.0,0.00022191,2]
[383550877,1756986662535,-400.0,0.00022191,2]
[383550878,1756986662545,-400.0,0.00022191,2]
[383550880,1756986662554,-400.0,0.00022191,2]
[383550882,1756986662563,-400.0,0.00022191,2]
[383550883,1756986662572,-400.0,0.00022191,2]
[383550885,1756986662582,-400.0,0.00022191,2]
[383550886,1756986662591,-400.0,0.00022191,2]
[383550888,1756986662601,-400.0,0.00022191,2]
[383550890,1756986662610,-300.0,0.00022191,2]
[383550891,1756986662619,-400.0,0.00022191,2]
[383550893,1756986662629,-400.0,0.00022191,2]
[383550895,1756986662639,-400.0,0.00022191,2]
[383550896,1756986662648,-409.12030785,0.00022191,2]
[383550898,1756986662658,-400.0,0.00022191,2]
[383550900,1756986662667,-400.0,0.00022191,2]
[383550901,1756986662676,-400.0,0.00022191,2]
[383550903,1756986662686,-400.0,0.00022191,2]
[383550905,1756986662696,-483.75,0.00022191,2]
[383550906,1756986662705,-404.33904162,0.00022191,2]
[383550908,1756986662714,-403.19561284,0.00022191,2]
[383550910,1756986662732,-400.0,0.00022191,2]
[383550912,1756986662744,-400.0,0.00022191,2]
[383550914,1756986662754,-400.0,0.00022191,2]
[383550915,1756986662764,-400.0,0.00022191,2]
[383550917,1756986662774,-400.0,0.00022191,2]
[383550919,1756986662783,-416.9754045,0.00022191,2]
[383550920,1756986662792,-400.0,0.00022191,2]
[383550922,1756986662802,-400.0,0.00022191,2]
[383550924,1756986662811,-400.0,0.00022191,2]
[383550926,1756986662821,-400.0,0.00022191,2]
[383550928,1756986662830,-400.0,0.00022191,2]
[383550930,1756986662841,-495.2,0.00022191,2]
[383550932,1756986662850,-400.0,0.00022191,2]
[383550934,1756986662859,-400.0,0.00022191,2]
[383550936,1756986662869,-400.0,0.00022191,2]
[383550938,1756986662878,-400.0,0.00022191,2]
[383550940,1756986662888,-400.0,0.00022191,2]
[383550942,1756986662898,-405.61981653,0.00022191,2]
[383550944,1756986662908,-400.0,0.00022191,2]
[383550946,1756986662918,-400.0,0.00022191,2]
[383550948,1756986662929,-400.0,0.00022191,2]
[383550950,1756986662938,-400.0,0.00022191,2]
[383550952,1756986662948,-400.0,0.00022191,2]
[383550953,1756986662957,-296.30840493,0.00022191,2]
[383550954,1756986662967,-400.0,0.00022191,2]
[383550955,1756986662976,-403.8575606,0.00022191,2]
[383550956,1756986662986,-400.3100714,0.00022191,2]
[383550957,1756986662996,-400.0,0.00022191,2]
[383550958,1756986663006,-321.01606187,0.00022191,2]
[383550959,1756986663016,-400.0,0.00022191,2]
[383550960,1756986663027,-400.0,0.00022191,2]
[383550961,1756986663037,-400.0,0.00022191,2]
[383550962,1756986663047,-400.0,0.00022191,2]
[383550963,1756986663057,-400.0,0.00022191,2]
[383550964,1756986663068,-400.0,0.00022191,2]
[383550965,1756986663077,-400.0,0.00022191,2]
[383550966,1756986663088,-400.0,0.00022191,2]
[383550967,1756986663098,-400.0,0.00022191,2]
[383550968,1756986663108,-400.0,0.00022191,2]
[383550970,1756986663118,-166.54,0.00022191,2]
[383550971,1756986663129,-400.0,0.00022191,2]
[383550972,1756986663139,-400.0,0.00022191,2]
[383550974,1756986663149,-400.0,0.00022191,2]
[383550976,1756986663159,-400.0,0.00022191,2]
[383550978,1756986663169,-400.0,0.00022191,2]
[383550980,1756986663179,-400.0,0.00022191,2]
[383550982,1756986663189,-400.0,0.00022191,2]
[383550985,1756986663199,-400.0,0.00022191,2]
[383550987,1756986663209,-400.0,0.00022191,2]
[383550989,1756986663219,-400.0,0.00022191,2]
[383550991,1756986663231,-400.0,0.00022191,2]
[383550993,1756986663240,-400.0,0.00022191,2]
[383550995,1756986663250,-400.0,0.00022191,2]
[383550997,1756986663260,-400.0,0.00022191,2]
[383550999,1756986663269,-400.0,0.00022191,2]
[383551001,1756986663279,-481.3075058,0.00022191,2]
[383551003,1756986663289,-400.0,0.00022191,2]
[383551005,1756986663298,-400.0,0.00022191,2]
[383551007,1756986663308,-400.0,0.00022191,2]
[383551009,1756986663317,-404.3195946,0.00022191,2]
[383551011,1756986663331,-400.0,0.00022191,2]
[383551013,1756986663341,-400.0,0.00022191,2]
[383551015,1756986663351,-400.0,0.00022191,2]
[383551017,1756986663361,-400.0,0.00022191,2]
[383551019,1756986663372,-400.0,0.00022191,2]
[383551021,1756986663382,-400.0,0.00022191,2]
[383551023,1756986663392,-400.0,0.00022191,2]
[383551025,1756986663402,-400.0,0.00022191,2]
[383551027,1756986663413,-400.0,0.00022191,2]
[383551029,1756986663423,-400.0,0.00022191,2]
[383551031,1756986663434,-400.0,0.00022191,2]
[383551033,1756986663444,-400.0,0.00022191,2]
[383551035,1756986663454,-3151.27,0.00022191,2]
[383551037,1756986663464,-400.0,0.00022191,2]
[383551039,1756986663475,-400.0,0.00022191,2]
[383551041,1756986663485,-400.0,0.00022191,2]
[383551043,1756986663495,-400.0,0.00022191,2]
[383551045,1756986663504,-400.0,0.00022191,2]
[383551047,1756986663514,-400.0,0.00022191,2]
[383551049,1756986663524,-400.0,0.00022191,2]
[383551051,1756986663535,-400.0,0.00022191,2]
[383551053,1756986663544,-400.0,0.00022191,2]
[383551055,1756986663554,-218.24789691,0.00022191,2]
[383551057,1756986663564,-400.0,0.00022191,2]
[383551059,1756986663574,-400.0,0.00022191,2]
[383551061,1756986663584,-400.0,0.00022191,2]
[383551063,1756986663594,-400.0,0.00022191,2]
[383551065,1756986663604,-403.02833392,0.00022191,2]
[383551067,1756986663614,-400.0,0.00022191,2]
[383551069,1756986663624,-400.0,0.00022191,2]
[383551071,1756986663634,-400.0,0.00022191,2]
[383551073,1756986663644,-400.0,0.00022191,2]
[383551075,1756986663654,-1003.11,0.00022191,2]
[383551077,1756986663665,-616.22,0.00022191,2]
[383551079,1756986663675,-400.0,0.00022191,2]
[383551081,1756986663685,-400.0,0.00022191,2]
[383551083,1756986663695,-200.1419627,0.00022191,2]
[383551144,1756986664299,-150.0,0.00020527,2]
[383551146,1756986664310,-274.88308538,0.00021917,2]
[383551291,1756986665850,-150.0,0.00020664,2]
[383551293,1756986665861,-150.0,0.00020801,2]
[383551295,1756986665872,-194.93130877,0.00020938,2]
[383551297,1756986665884,-125.11691462,0.00021917,2]
[383551299,1756986665895,-400.0,0.00021917,2]
[383551302,1756986665907,-201.8580373,0.00022191,2]
[383551327,1756986666144,-410.1046732,0.00022191,2]
[383551330,1756986666154,-400.38,0.00022191,2]
[383551331,1756986666164,-400.0,0.00022191,2]
[383551333,1756986666174,-400.0,0.00022191,2]
[383551335,1756986666183,-405.8935721,0.00022191,2]
[383551337,1756986666193,-400.0,0.00022191,2]
[383551339,1756986666203,-400.0,0.00022191,2]
[383551341,1756986666213,-400.0,0.00022191,2]
[383551343,1756986666222,-400.0,0.00022191,2]
[383551345,1756986666235,-400.0,0.00022191,2]
[383551347,1756986666246,-400.0,0.00022191,2]
[383551349,1756986666256,-400.0,0.00022191,2]
[383551351,1756986666266,-400.0,0.00022191,2]
[383551353,1756986666276,-400.0,0.00022191,2]
[383551355,1756986666285,-400.0,0.00022191,2]
[383551357,1756986666295,-400.0,0.00022191,2]
[383551359,1756986666304,-400.0,0.00022191,2]
[383551361,1756986666313,-400.0,0.00022191,2]
[383551363,1756986666323,-400.0,0.00022191,2]
[383551365,1756986666335,-400.0,0.00022191,2]
[383551367,1756986666344,-3023.13,0.00022191,2]
[383551369,1756986666354,-403.26787302,0.00022191,2]
[383551371,1756986666364,-400.0,0.00022191,2]
[383551373,1756986666374,-400.0,0.00022191,2]
[383551375,1756986666383,-400.0,0.00022191,2]
[383551377,1756986666392,-400.0,0.00022191,2]
[383551379,1756986666403,-400.0,0.00022191,2]
[383551381,1756986666412,-400.0,0.00022191,2]
[383551383,1756986666422,-400.0,0.00022191,2]
[383551385,1756986666432,-400.0,0.00022191,2]
[383551387,1756986666442,-400.0,0.00022191,2]
[383551389,1756986666451,-228.66420625,0.00022191,2]
[383551393,1756986666472,-175.85645595,0.00022191,2]
[383551395,1756986666484,-477.55,0.00022191,2]
[383551397,1756986666493,-1087.71,0.00022191,2]
[383551399,1756986666502,-349.29252063,0.00022191,2]
[383551433,1756986666830,-179.80954788,0.00021335,2]
[383551435,1756986666840,-159.07656695,0.000219,2]
[383551437,1756986666851,-400.0,0.00021917,2]
[383551439,1756986666861,-50.70747937,0.00022191,2]
[383551441,1756986666870,-271.1473693,0.00022191,2]
[383551443,1756986666886,-128.8526307,0.00022191,2]
[383551445,1756986666894,-166.26629149,0.00022191,2]
[383551447,1756986666905,-233.73370851,0.00022191,2]
[383551449,1756986666914,-400.0,0.00022191,2]
[383551451,1756986666924,-267.40629149,0.00022191,2]
[383551453,1756986666935,-132.59370851,0.00022191,2]
[383551455,1756986666943,-400.0,0.00022191,2]
[383551457,1756986666953,-400.0,0.00022191,2]
[383551459,1756986666962,-400.0,0.00022191,2]
[383551461,1756986666971,-146.82125149,0.00022191,2]
[383551464,1756986666987,-253.17874851,0.00022191,2]
[383551466,1756986666996,-88.01488916,0.00022191,2]
[383551470,1756986667022,-311.98511084,0.00022191,2]
[383551471,1756986667031,-400.0,0.00022191,2]
[383551473,1756986667040,-400.0,0.00022191,2]
[383551475,1756986667050,-400.0,0.00022191,2]
[383551477,1756986667060,-400.0,0.00022191,2]
[383551478,1756986667069,-404.25317169,0.00022191,2]
[383551479,1756986667078,-400.0,0.00022191,2]
[383551480,1756986667089,-495.61,0.00022191,2]
[383551481,1756986667098,-400.0,0.00022191,2]
[383551482,1756986667110,-402.63303176,0.00022191,2]
[383551483,1756986667120,-400.0,0.00022191,2]
[383551484,1756986667130,-400.0,0.00022191,2]
[383551485,1756986667140,-400.0,0.00022191,2]
[383551486,1756986667150,-400.0,0.00022191,2]
[383551487,1756986667159,-400.0,0.00022191,2]
[383551488,1756986667171,-99.48782571,0.00022191,2]
[383551490,1756986667942,-159.07656691,0.000219,2]
[383551491,1756986667952,-585.32257577,0.00021917,2]
[383551492,1756986668032,-690.70742423,0.00021917,2]
[383551493,1756986668042,-400.0,0.00021917,2]
[383551494,1756986668052,-426.43244271,0.00022191,2]
[383551495,1756986668062,-134.43044106,0.00022191,2]
[383551496,1756986674135,-396.93333027,0.00019357,2]
[383551497,1756986734445,-400.0,0.000192,2]
[383551498,1756986741421,-404.82811736,0.000192,2]
[383551499,1756986748437,-400.0,0.000192,2]
[383551500,1756986755893,-187.89422583,0.00019199,2]
[383551501,1756986755939,-24.21154834,0.00019199,2]
[383551502,1756986764191,-153.0525765,0.00019199,2]
[383551503,1756986764228,-93.894847,0.00019199,2]
[383551505,1756986771232,-76.43160869,0.00019199,2]
[383551506,1756986771261,-10.22246556,0.00019199,2]
[383551507,1756986771304,-226.6918515,0.00019199,2]
[383551508,1756986778266,-400.0,0.000192,2]
[383551509,1756986785964,-400.0,0.000192,2]
[383551510,1756986792972,-400.0,0.000192,2]
[383551512,1756986799492,500.0,0.00030137,120]
[383551513,1756986800020,-400.0,0.000192,2]
[383551516,1756986807752,-400.0,0.000192,2]
[383551517,1756986814767,-400.0,0.000192,2]
[383551518,1756986821769,500.0,0.0003,120]
[383551519,1756986821803,-400.0,0.000192,2]
[383551520,1756986828976,-400.0,0.000192,2]
[383551521,1756986836463,-400.0,0.000192,2]
[383551522,1756986843446,-400.0,0.000192,2]
[383551523,1756986850454,-400.0,0.000192,2]
[383551524,1756986858161,-400.0,0.000192,2]
[383551525,1756986861946,500.0,0.0003,120]
[383551526,1756986866011,-400.0,0.000192,2]
[383551527,1756986873778,-400.0,0.000192,2]
[383551530,1756986881263,-400.0,0.000192,2]
[383551531,1756986888754,-400.0,0.000192,2]
[383551532,1756986896471,-400.0,0.000192,2]
[383551533,1756986901933,502.158,0.0003,120]
[383551534,1756986903827,-400.19569824,0.000192,2]
[383551535,1756986910688,-400.0,0.000192,2]
[383551536,1756986917830,-365.779713,0.000192,2]
[383551537,1756986926078,-400.0,0.000192,2]
[383551538,1756986929648,500.0,0.0003,120]
[383551539,1756986933129,-400.0,0.000192,2]
[383551540,1756986940147,-7.06217342,0.000192,2]
[383551541,1756986940174,-185.87565316,0.000192,2]
[383551543,1756986947672,-165.90481506,0.00019239,2]
[383551550,1756987003997,500.0,0.00030136,120]
[383551562,1756987102869,187.9,0.00013699,2]
[383551563,1756987128036,-207.22650462,0.00019142,2]
[383551565,1756987221167,-100.0,0.00019244,2]
[383551566,1756987221189,-200.0,0.00019244,2]
[383551570,1756987294774,-400.0,0.00019,2]
[383551575,1756987402164,500.0,0.00030137,120]
[383551585,1756987546582,5030.7,0.00030137,120]
[383551589,1756987613748,167.31,0.00010096,2]
[383551609,1756987831495,-47.0,0.00019,2]
[383551610,1756987831507,-250.0,0.00019008,2]
[383551611,1756987831518,-63.2531425,0.00019015,2]
[383551612,1756987831529,-236.7468575,0.00019015,2]
[383551613,1756987831539,-195.0,0.00019031,2]
[383551614,1756987831548,-250.0,0.00019037,2]
[383551615,1756987831558,-300.0,0.00019078,2]
[383551616,1756987831568,-18.2531425,0.0001964,2]
[383551617,1756987831588,-381.7468575,0.0001964,2]
[383551618,1756987831598,-250.0,0.00019663,2]
[383551619,1756987831607,-700.0,0.000199,2]
[383551620,1756987831618,-1200.0,0.00019924,2]
[383551621,1756987831627,-151.0,0.00019925,2]
[383551622,1756987831637,-151.0,0.00019925,2]
[383551623,1756987831646,-400.0,0.00019925,2]
[383551624,1756987831655,-267.46074303,0.00019925,2]
[383551625,1756987831665,-500.0,0.00019925,2]
[383551626,1756987831674,-12211.45950738,0.00019937,2]
[383551627,1756987831686,-18752.10432925,0.00019937,2]
[383551628,1756987831697,-641.96310001,0.00019937,2]
[383551629,1756987831716,-1507.43744803,0.00019937,2]
[383551630,1756987831725,-185.3565246,0.0001998,2]
[383551631,1756987831735,-500.0,0.0001998,2]
[383551632,1756987831744,-187.9,0.00020187,2]
[383551633,1756987831754,-12929.49324952,0.00020198,2]
[383551634,1756987831766,-380.15953325,0.00020198,2]
[383551635,1756987831778,-310.48311187,0.00020198,2]
[383551636,1756987831789,-340.82543348,0.00020198,2]
[383551644,1756987831853,-5131.66764592,0.00020198,2]
[383551646,1756987831865,-2281.39670073,0.00020198,2]
[383551648,1756987831877,-523.52401027,0.00020198,2]
[383551656,1756987837369,-476.3,0.00020198,2]
[383551657,1756987837578,-979.68276412,0.00020198,2]
[383551830,1756987839561,-594.00247311,0.00020198,2]
[383552117,1756987842397,-2704.57507773,0.00020198,2]
[383552119,1756987842407,-160.0,0.00020203,7]
[383552121,1756987842416,-290.92,0.00020223,2]
[383552123,1756987842426,-225.65,0.00020247,2]
[383552125,1756987842435,-166.44,0.00020266,2]
[383552127,1756987842444,-700.0,0.00020273,2]
[383552130,1756987842454,-1900.0,0.00020273,2]
[383552131,1756987842463,-666.0,0.00020295,3]
[383552133,1756987842472,-156.09,0.00020333,2]
[383552135,1756987842483,-1600.0000001,0.00020355,2]
[383552137,1756987842492,-470.45,0.00020541,2]
[383552139,1756987842506,-501.77538983,0.00020547,2]
[383552141,1756987842516,-205.66,0.00020592,2]
[383552143,1756987842526,-2905.5389,0.000206,2]
[383552145,1756987842535,-577.0,0.000207,2]
[383552147,1756987842544,-3648.71397855,0.00020789,2]
[383552151,1756987842569,-345.0,0.00020789,2]
[383552168,1756987842700,-16834.11751351,0.00020789,2]
[383552171,1756987842709,-3456.6269522,0.0002083,2]
[383552173,1756987842719,-1500.0,0.00020836,2]
[383552175,1756987842728,-300.0,0.000209,2]
[383552177,1756987842738,-300.0,0.000209,2]
[383552179,1756987842747,-195.0,0.000209,2]
[383552181,1756987842757,-2409.0,0.000209,2]
[383552183,1756987842766,-500.0,0.000209,2]
[383552185,1756987842776,-300.0,0.000209,2]
[383552187,1756987842786,-250.0,0.000209,2]
[383552189,1756987842796,-500.0,0.000209,2]
[383552191,1756987842805,-1315.69979781,0.0002104,2]
[383552193,1756987842815,-250.0,0.00021106,2]
[383552195,1756987842825,-423.34959868,0.00021106,2]
[383552197,1756987842835,-3052.0,0.00021122,2]
[383552199,1756987842844,-924.0,0.00021122,2]
[383552201,1756987842853,-2005.47551402,0.00021122,2]
[383552376,1756987845683,-29.52448598,0.00021122,2]
[383552377,1756987845692,-1577.0,0.00021122,2]
[383552378,1756987845701,-600.0,0.00021122,2]
[383552379,1756987845711,-567.0,0.00021122,2]
[383552380,1756987845720,-1300.0,0.00021122,2]
[383552381,1756987845730,-811.0,0.00021122,2]
[383552382,1756987845739,-2958.5091248,0.00021122,2]
[383552391,1756987926847,500.0,0.00030136,120]
[383552392,1756987928196,2000.0,0.000223,120]
[383552393,1756987999516,500.0,0.00030137,120]
[383552394,1756988030955,177.13,0.00013699,2]
[383552395,1756988042737,164.16,0.0002583,120]
[383552396,1756988271364,2985.56,0.00030137,120]
[383552397,1756988597307,155.8,0.00010212,2]
[383552398,1756988597515,155.8,0.00010779,2]
[383552399,1756988597757,155.8,0.00011346,2]
[383552400,1756988598064,155.8,0.00011914,2]
[383552401,1756988598286,155.8,0.00012481,2]
[383552402,1756988598507,155.8,0.00013048,2]
[383552403,1756988598723,155.8,0.00013615,2]
[383552404,1756988598948,155.8,0.00014183,2]
[383552405,1756988599154,155.8,0.0001475,2]
[383552406,1756988599939,155.8,0.00015317,2]
[383552407,1756988599998,155.8,0.00015885,2]
[383552408,1756988600042,155.8,0.00016452,2]
[383552409,1756988600129,617.600353,0.00030137,120]
[383552410,1756988600280,155.8,0.00017019,2]
[383552411,1756988600599,155.8,0.00017587,2]
[383552412,1756988601260,155.8,0.00018154,2]
[383552413,1756988601307,155.8,0.00018721,2]
[383552435,1756988858939,500.0,0.00030136,120]
[383552445,1756988972279,176.64,0.00013699,2]
[383552446,1756988985074,586.58,0.00030136,120]
[383552452,1756989031998,-155.8,0.00019289,2]
[383552453,1756989032007,-250.0,0.00019306,2]
[383552454,1756989032017,-300.0,0.00019324,2]
[383552455,1756989032026,-300.0,0.0001936,2]
[383552457,1756989032038,-300.0,0.00019494,2]
[383552459,1756989032047,-155.8,0.00019856,2]
[383552461,1756989032056,-300.0,0.00019999,2]
[383552463,1756989032065,-1200.0,0.00019999,2]
[383552464,1756989032074,-8792.50671171,0.0002,2]
[383552465,1756989032083,-176.64,0.00020187,2]
[383552466,1756989032093,-267.46074303,0.00020261,2]
[383552467,1756989032103,-600.0,0.00020273,2]
[383552468,1756989032112,-1500.0,0.00020273,2]
[383552469,1756989032121,-160.0,0.00020325,7]
[383552471,1756989032131,-250.0,0.00020369,2]
[383552473,1756989032140,-155.8,0.00020423,2]
[383552475,1756989032150,-232.73,0.0002045,2]
[383552477,1756989032160,-207.23,0.00020549,2]
[383552479,1756989032168,-559.25224764,0.00020568,2]
[383552481,1756989032178,-565.0,0.000206,2]
[383552483,1756989032187,-559.25224763,0.00020647,2]
[383552485,1756989032196,-164.16,0.00020664,2]
[383552487,1756989032206,-666.0,0.00020668,3]
[383552489,1756989032216,-164.53,0.00020696,2]
[383552491,1756989032226,-2400.0,0.00020704,2]
[383552492,1756989032235,-943.3730477,0.00020704,2]
[383552494,1756989032244,-156.48,0.00020708,2]
[383552496,1756989032254,-3531.72904165,0.00020747,2]
[383552498,1756989032597,-1181.27095835,0.00020747,2]
[383552499,1756989032606,-1510.11027893,0.00020772,2]
[383552500,1756989032615,-541.14,0.00020795,2]
[383552501,1756989032625,-150.0,0.00020795,2]
[383552502,1756989032634,-174.25,0.00020795,2]
[383552503,1756989032645,-409.65,0.00020795,2]
[383552504,1756989032655,-166.53,0.00020795,2]
[383552505,1756989032664,-4713.0,0.00020871,2]
[383552506,1756989032673,-500.0,0.00020904,2]
[383552507,1756989032683,-404.2,0.00020904,2]
[383552508,1756989032692,-169.22,0.00020935,2]
[383552509,1756989032702,-1096.63,0.00021096,2]
[383552510,1756989032712,-343.85,0.00021096,2]
[383552511,1756989032721,-155.29303732,0.00021187,2]
[383552512,1756989032732,-4432.93463357,0.000212,2]
[383552513,1756989032766,-353.337987,0.000212,2]
[383552532,1756989037714,-306.11828438,0.000212,2]
[383552551,1756989042755,-435.30945287,0.000212,2]
[383552552,1756989042767,-944.72930572,0.000212,2]
[383552553,1756989042777,-250.0,0.00021217,2]
[383552554,1756989042787,-129.8181368,0.00021217,2]
[383552555,1756989042799,-170.1818632,0.00021217,2]
[383552556,1756989042809,-500.0,0.00021217,2]
[383552557,1756989042819,-300.0,0.00021217,2]
[383552558,1756989042828,-250.0,0.00021217,2]
[383552559,1756989042838,-3052.0,0.00021234,2]
[383552560,1756989042847,-174.25,0.00021281,2]
[383552561,1756989042857,-150.0,0.0002129,2]
[383552562,1756989042865,-567.0,0.0002131,2]
[383552563,1756989042874,-1300.0,0.0002131,2]
[383552564,1756989042884,-600.0,0.0002131,2]
[383552565,1756989042893,-1577.0,0.0002131,2]
[383552567,1756989042903,-811.0,0.0002131,2]
[383552568,1756989042912,-1175.0,0.0002131,2]
[383552569,1756989042921,-896.0,0.0002131,2]
[383552570,1756989042931,-3382.0,0.0002131,2]
[383552571,1756989042940,-2241.0,0.0002131,2]
[383552572,1756989042950,-4163.0,0.0002131,2]
[383552573,1756989042959,-2035.0,0.0002131,2]
[383552574,1756989042968,-924.0,0.0002131,2]
[383552575,1756989042977,-6163.0,0.0002131,2]
[383552576,1756989042985,-21262.79257262,0.00021318,2]
[383552577,1756989042994,-525.0,0.00021357,2]
[383552578,1756989043003,-600.0,0.00021369,2]
[383552579,1756989043012,-1500.0,0.00021369,2]
[383552580,1756989043020,-311.0,0.00021425,2]
[383552581,1756989043029,-160.0,0.0002143,2]
[383552582,1756989043041,-160.0,0.0002143,2]
[383552583,1756989043049,-160.0,0.0002143,2]
[383552584,1756989043059,-514.64478986,0.0002143,2]
[383552585,1756989043068,-212.59699798,0.0002143,2]
[383552586,1756989043078,-3010.21128815,0.00021443,2]
[383552587,1756989043087,-232.73,0.00021473,2]
[383552588,1756989043096,-150.0,0.00021499,2]
[383552589,1756989043105,-150.0,0.00021499,2]
[383552590,1756989043114,-150.0,0.00021499,2]
[383552591,1756989043124,-200.0,0.0002151,7]
[383552592,1756989043133,-661.80343057,0.00021525,2]
[383552593,1756989043143,-150.0,0.00021616,2]
[383552594,1756989043152,-277.35679052,0.0002163,2]
[383552595,1756989043161,-1405.378,0.00021667,2]
[383552596,1756989043170,-400.0,0.000217,7]
[383552597,1756989043180,-168.0,0.00021719,2]
[383552598,1756989043189,-168.0,0.00021749,2]
[383552599,1756989043198,-194.787,0.00021768,2]
[383552600,1756989043207,-420.0,0.00021777,2]
[383552601,1756989043217,-554.0,0.0002178,2]
[383552602,1756989043225,-156.63520933,0.00021797,5]
[383552603,1756989043235,-9007.18505075,0.00021797,2]
[383552604,1756989043244,-900.0,0.000218,7]
[383552605,1756989043253,-207.6903,0.00021817,2]
[383552606,1756989043262,-5000.0,0.00021817,2]
[383552607,1756989043272,-10000.0,0.00021817,2]
[383552608,1756989043281,-190.60157819,0.00021817,2]
[383552609,1756989043292,-455.68964286,0.00021817,2]
[383552610,1756989043301,-12980.87890049,0.00021817,2]
[383552611,1756989043311,-168.0,0.00021828,2]
[383552612,1756989043320,-1680.0,0.00021881,2]
[383552613,1756989043330,-500.0,0.00021897,2]
[383552614,1756989043339,-500.0,0.00021897,2]
[383552615,1756989043348,-198.6992028,0.00021897,2]
[383552616,1756989043357,-150.0,0.00021897,2]
[383552617,1756989043367,-150.0,0.00021897,2]
[383552618,1756989043376,-150.0,0.00021897,2]
[383552619,1756989043385,-150.0,0.00021897,2]
[383552620,1756989043394,-150.0,0.00021897,2]